[Event "94th Tradewise Hastings Congress"]
[Site "Hastings"]
[Date "2019.01.04"]
[Round "8"]
[White "Eames, Robert S"]
[Black "Nettleton, Charlie B"]
[Result "0-1"]
[ECO "D10"]
[WhiteElo "2167"]
[BlackElo "2059"]
[Annotator "NA"]
[PlyCount "88"]
[EventDate "2018.12.28"]
[EventType "swiss"]
[EventCountry "ENG"]
[SourceTitle "playchess.com"]
[Source "ChessBase"]
[SourceQuality "1"]
[TimeControl "40/6000+30:3000+30"]

1. d4 {[%emt 0:00:00]} d5 {[%emt 0:00:00]} 2. c4 {[%emt 0:00:00]} c6 {[%emt 0:00:00]} 3. cxd5 {[%emt 0:00:17]} cxd5 {[%emt 0:00:14]} 4. Bf4 {[%emt 0:00:08]} Nc6 {[%emt 0:00:42]} 5. e3 {[%emt 0:00:29]} Nf6 {[%emt 0:00:46]} 6. Nc3 {[%emt 0:00:26]} a6 {[%emt 0:01:29]} 7. Be2 {[%emt 0:00:36]} e6 {[%emt 0:12:58]} 8. Bd3 {[%emt 0:01:45]} Qb6 {[%emt 0:02:40]} 9. a3 {[%emt 0:05:10]} Bd7 {[%emt 0:10:53]} 10. h3 {[%emt 0:00:54]} Na5 {[%emt 0:01:18]} 11. b4 {[%emt 0:03:54]} Nc4 {[%emt 0:02:52]} 12. Qb3 {[%emt 0:02:57]} Rc8 {[%emt 0:03:11]} 13. Nge2 {[%emt 0:04:45]} Bd6 {[%emt 0:18:24]} 14. Bg5 {[%emt 0:04:39]} Qc7 {[%emt 0:15:47]} 15. Ra2 {[%emt 0:02:39]} b5 {[%emt 0:01:14]} 16. O-O {[%emt 0:00:40]} Ng8 {[%emt 0:02:37]} 17. e4 {[%emt 0:01:48]} f6 {[%emt 0:00:31]} 18. Bh4 {[%emt 0:04:05]} Ne7 {[%emt 0:02:48]} 19. f4 {[%emt 0:04:40]} dxe4 {[%emt 0:00:47]} 20. Nxe4 {[%emt 0:02:06]} Nf5 {[%emt 0:00:37]} 21. Nxd6+ {[%emt 0:03:11]} Qxd6 {[%emt 0:00:23]} 22. Bf2 {[%emt 0:02:10]} h5 {[%emt 0:04:32]} 23. Nc3 {[%emt 0:14:04]} Kf7 {[%emt 0:05:37]} 24. d5 {[%emt 0:08:36]} exd5 {[%emt 0:01:06]} 25. Re2 {[%emt 0:03:16]} Rhe8 {[%emt 0:03:15]} 26. Rxe8 {[%emt 0:00:47]} Rxe8 {[%emt 0:00:41]} 27. Qd1 {[%emt 0:01:48]} g6 {[%emt 0:02:26]} 28. Bc5 {[%emt 0:02:17]} Qe6 {[%emt 0:00:36]} 29. g4 {[%emt 0:15:11]} hxg4 {[%emt 0:01:25]} 30. hxg4 {[%emt 0:03:30]} Nh4 {[%emt 0:04:15]} 31. Bxg6+ {[%emt 0:08:05]} Nxg6 {[%emt 0:00:21]} 32. f5 {[%emt 0:00:17]} Qe5 {[%emt 0:01:04]} 33. fxg6+ {[%emt 0:01:41]} Kg7 {[%emt 0:01:02]} 34. Qd3 {[%emt 0:01:40]} Rh8 {[%emt 0:03:22]} 35. Rf2 {[%emt 0:00:32]} Qe1+ {[%emt 0:00:48]} 36. Rf1 {[%emt 0:00:11]} Qh4 {[%emt 0:00:34]} 37. Rd1 {[%emt 0:05:53]} Qxg4+ {[%emt 0:01:44]} 38. Kf2 {[%emt 0:00:50]} Rh2+ {[%emt 0:00:20]} 39. Ke1 {[%emt 0:00:22]} Rh1+ {[%emt 0:00:46]} 40. Kf2 {[%emt 0:00:07]} Rh2+ {[%emt 0:01:11]} 41. Ke1 {[%emt 0:51:26]} Qh4+ {[%emt 0:53:33]} 42. Kf1 {[%emt 0:00:07]} Bh3+ {[%emt 0:01:01]} 43. Kg1 {[%emt 0:00:06]} Qg4+ {[%emt 0:00:12]} 44. Kxh2 {[%emt 0:00:06]} Qg2# {[%emt 0:00:00]} 0-1

[Event "94th Tradewise Hastings Congress"]
[Site "Hastings"]
[Date "2019.01.04"]
[Round "8"]
[White "Byron, Alan M"]
[Black "Comellas Blanchart, Jordi"]
[Result "1-0"]
[ECO "C95"]
[WhiteElo "2157"]
[BlackElo "2055"]
[Annotator "NA"]
[PlyCount "105"]
[EventDate "2018.12.28"]
[EventType "swiss"]
[EventCountry "ENG"]
[SourceTitle "playchess.com"]
[Source "ChessBase"]
[SourceQuality "1"]
[TimeControl "40/6000+30:3000+30"]

1. e4 {[%emt 0:00:00]} e5 {[%emt 0:00:00]} 2. Nf3 {[%emt 0:00:00]} Nc6 {[%emt 0:00:00]} 3. Bb5 {[%emt 0:00:00]} a6 {[%emt 0:00:00]} 4. Ba4 {[%emt 0:00:00]} Nf6 {[%emt 0:00:04]} 5. O-O {[%emt 0:00:00]} Be7 {[%emt 0:00:08]} 6. Re1 {[%emt 0:00:04]} b5 {[%emt 0:00:09]} 7. Bb3 {[%emt 0:00:02]} d6 {[%emt 0:00:11]} 8. c3 {[%emt 0:00:12]} O-O {[%emt 0:00:10]} 9. h3 {[%emt 0:02:08]} Nb8 {[%emt 0:00:10]} 10. d4 {[%emt 0:00:08]} Nbd7 {[%emt 0:00:07]} 11. Nbd2 {[%emt 0:00:12]} Bb7 {[%emt 0:00:11]} 12. Bc2 {[%emt 0:00:17]} Re8 {[%emt 0:00:07]} 13. Nf1 {[%emt 0:00:09]} Bf8 {[%emt 0:00:08]} 14. Ng3 {[%emt 0:00:07]} g6 {[%emt 0:00:09]} 15. a4 {[%emt 0:00:38]} c5 {[%emt 0:01:13]} 16. d5 {[%emt 0:00:20]} c4 {[%emt 0:00:28]} 17. Bg5 {[%emt 0:01:14]} Nc5 {[%emt 0:02:17] C95: Closed Ruy Lopez: Breyer Variation with 10 d4} 18. Ra3 {[%emt 0:03:17]} (18. Qd2 Be7 19. Bh6 Nfd7 20. Nh2 bxa4 21. Ng4 Nb3 22. Bxb3 axb3 23. f4 Nf6 24. Ne3 exf4 25. Bxf4 {½-½ (54) Borisek,J (2578)-Amin,B (2686) Batumi 2018}) 18... Be7 {[%emt 0:02:52]} 19. Qd2 {[%emt 0:01:08]} Nfd7 {[%emt 0:03:21]} 20. Bh6 {[%emt 0:06:38]} Nb6 {[%emt 0:01:41]} 21. a5 {[%emt 0:00:55]} Nbd7 {[%emt 0:06:25]} 22. h4 $146 {[%emt 0:04:35]} ({Predecessor:} 22. Nf1 Bc8 23. g3 Nb7 24. Rea1 Ndc5 25. Kg2 {0-1 (49) Fiacan,R (2227)-Bunda,V (2283) Kosice 2018}) 22... Bc8 {[%emt 0:04:12]} 23. h5 {[%emt 0:07:02]} Nb7 {[%emt 0:01:22]} 24. hxg6 {[%emt 0:11:03]} hxg6 {[%emt 0:00:24]} 25. Rea1 {[%emt 0:25:36]} Bf8 {[%emt 0:32:35]} 26. Bg5 {[%emt 0:11:12]} f6 {[%emt 0:00:19]} 27. Be3 {[%emt 0:01:22]} Bg7 {[%emt 0:00:21]} 28. Nh2 {[%emt 0:07:27]} Nf8 {[%emt 0:02:15]} 29. f3 {[%emt 0:04:30]} Qe7 {[%emt 0:03:15]} 30. Ng4 {[%emt 0:07:00]} Bxg4 {[%emt 0:05:04]} 31. fxg4 {[%emt 0:00:03]} Nd8 {[%emt 0:00:44]} 32. b3 {[%emt 0:04:18]} cxb3 {[%emt 0:03:32]} 33. Bxb3 {[%emt 0:01:26]} Nb7 {[%emt 0:19:03]} 34. c4 {[%emt 0:00:16]} bxc4 {[%emt 0:00:41]} 35. Bxc4 {[%emt 0:00:07]} Nd7 {[%emt 0:00:22]} 36. Rf1 {[%emt 0:04:56]} Rec8 {[%emt 0:03:27]} 37. Be2 {[%emt 0:00:48]} Nbc5 {[%emt 0:00:47]} 38. g5 {[%emt 0:02:09]} Rf8 {[%emt 0:08:02]} 39. gxf6 {[%emt 0:02:55]} Rxf6 {[%emt 0:02:38]} 40. Bf3 {[%emt 0:04:06]} Rff8 {[%emt 0:01:37]} 41. Nh1 {[%emt 0:05:58]} Qh4 {[%emt 0:08:02]} 42. g3 {[%emt 0:19:39]} Qe7 {[%emt 0:02:28]} 43. Kg2 {[%emt 0:03:05]} Rab8 {[%emt 0:02:24]} 44. Nf2 {[%emt 0:00:13]} Nb3 {[%emt 0:01:28]} 45. Qd1 {[%emt 0:01:07]} Nd4 {[%emt 0:01:12]} 46. Nd3 {[%emt 0:04:03]} Nc5 {[%emt 0:21:28]} 47. Nxc5 {[%emt 0:04:02]} dxc5 {[%emt 0:05:54]} 48. Bg4 {[%emt 0:00:43]} Bf6 {[%emt 0:02:48]} 49. Qc1 {[%emt 0:03:48]} Rb4 {[%emt 0:06:26]} 50. Rh1 $18 {[%emt 0:02:23]} Rfb8 {[%emt 0:01:02]} 51. Ra2 {[%emt 0:07:14]} Nb3 {[%emt 0:01:42]} 52. Qf1 {[%emt 0:01:16]} Bg5 {[%emt 0:02:37]} 53. Be6+ {[%emt 0:00:13] Nd4 [%emt 00:01:31]} 1-0

[Event "94th Tradewise Hastings Congress"]
[Site "Hastings"]
[Date "2019.01.04"]
[Round "8"]
[White "Spiegel, Stefan"]
[Black "Royal, Shreyas"]
[Result "1/2-1/2"]
[ECO "B21"]
[WhiteElo "2124"]
[BlackElo "1930"]
[Annotator "NA"]
[PlyCount "47"]
[EventDate "2018.12.28"]
[EventType "swiss"]
[EventCountry "ENG"]
[SourceTitle "playchess.com"]
[Source "ChessBase"]
[SourceQuality "1"]
[TimeControl "40/6000+30:3000+30"]

1. e4 {[%emt 0:00:00]} c5 {[%emt 0:00:37]} 2. Be2 {[%emt 0:00:03]} Nc6 {[%emt 0:02:24]} 3. f4 {[%emt 0:00:32]} e6 {[%emt 0:01:47]} 4. Nf3 {[%emt 0:01:04]} d5 {[%emt 0:02:51]} 5. d3 {[%emt 0:01:11]} Bd6 {[%emt 0:02:12]} 6. O-O {[%emt 0:02:28]} Nge7 {[%emt 0:00:45]} 7. c3 {[%emt 0:04:03]} Bc7 {[%emt 0:05:34]} 8. Na3 {[%emt 0:04:55]} a6 {[%emt 0:03:25]} 9. Nc2 {[%emt 0:01:30]} O-O {[%emt 0:04:07]} 10. b4 {[%emt 0:02:26]} cxb4 {[%emt 0:08:15]} 11. cxb4 {[%emt 0:00:13]} b6 {[%emt 0:01:13]} 12. Qe1 {[%emt 0:02:36]} Bb7 {[%emt 0:00:33]} 13. Be3 {[%emt 0:10:37]} Rc8 {[%emt 0:02:40]} 14. Rc1 {[%emt 0:01:15]} a5 {[%emt 0:10:31]} 15. e5 {[%emt 0:02:37]} axb4 {[%emt 0:05:30]} 16. d4 {[%emt 0:02:39]} Ra8 {[%emt 0:00:40]} 17. Ra1 {[%emt 0:00:07]} Ra5 {[%emt 0:03:05]} 18. Nxb4 {[%emt 0:00:20]} Qd7 {[%emt 0:01:01]} 19. Bd2 {[%emt 0:00:29]} Nxb4 {[%emt 0:02:00]} 20. Bxb4 {[%emt 0:00:07]} Ra7 {[%emt 0:00:06]} 21. Qc3 {[%emt 0:00:19]} Rfa8 {[%emt 0:01:26]} 22. a3 {[%emt 0:00:12]} Ba6 {[%emt 0:02:16]} 23. Bxa6 {[%emt 0:01:40]} Rxa6 {[%emt 0:00:08]} 24. Rfc1 {[%emt 0:00:08]} 1/2-1/2

[Event "94th Tradewise Hastings Congress"]
[Site "Hastings"]
[Date "2019.01.04"]
[Round "8"]
[White "Taylor, Adam A"]
[Black "Peek, Marcel"]
[Result "1/2-1/2"]
[ECO "A09"]
[WhiteElo "2122"]
[BlackElo "2293"]
[Annotator "NA"]
[PlyCount "48"]
[EventDate "2018.12.28"]
[EventType "swiss"]
[EventCountry "ENG"]
[SourceTitle "playchess.com"]
[Source "ChessBase"]
[SourceQuality "1"]
[TimeControl "40/6000+30:3000+30"]

1. Nf3 {[%emt 0:02:14]} d5 {[%emt 0:00:00]} 2. c4 {[%emt 0:00:29]} d4 {[%emt 0:00:28]} 3. e3 {[%emt 0:00:12]} Nc6 {[%emt 0:00:18]} 4. exd4 {[%emt 0:02:47]} Nxd4 {[%emt 0:00:10]} 5. Nxd4 {[%emt 0:00:04]} Qxd4 {[%emt 0:00:08]} 6. d3 {[%emt 0:00:10]} c6 {[%emt 0:00:34]} 7. Nc3 {[%emt 0:00:06]} Nh6 {[%emt 0:00:41]} 8. Be3 {[%emt 0:01:24]} Qd8 {[%emt 0:00:48]} 9. d4 {[%emt 0:00:32]} Nf5 {[%emt 0:02:31]} 10. Qd2 {[%emt 0:00:26]} g6 {[%emt 0:01:28]} 11. Be2 {[%emt 0:00:16]} Bg7 {[%emt 0:00:56]} 12. Rd1 {[%emt 0:09:36]} O-O {[%emt 0:00:34]} 13. O-O {[%emt 0:00:32]} Nxe3 {[%emt 0:06:54]} 14. Qxe3 {[%emt 0:02:43]} Re8 {[%emt 0:01:43]} 15. d5 {[%emt 0:17:40]} cxd5 {[%emt 0:10:07]} 16. Rxd5 {[%emt 0:07:58]} Qb6 {[%emt 0:01:16]} 17. Qxb6 {[%emt 0:03:12]} axb6 {[%emt 0:00:20]} 18. Rc1 {[%emt 0:06:53]} Bxc3 {[%emt 0:19:28]} 19. Rxc3 {[%emt 0:00:25]} Rxa2 {[%emt 0:00:07]} 20. Rb3 {[%emt 0:05:46]} Ra1+ {[%emt 0:13:54]} 21. Rd1 {[%emt 0:00:32]} Rxd1+ {[%emt 0:00:07]} 22. Bxd1 {[%emt 0:00:03]} Be6 {[%emt 0:11:15]} 23. Bf3 {[%emt 0:09:46]} Ra8 {[%emt 0:11:20]} 24. h4 {[%emt 0:04:39]} Bxc4 {[%emt 0:06:37]} 1/2-1/2

[Event "94th Tradewise Hastings Congress"]
[Site "Hastings"]
[Date "2019.01.04"]
[Round "8"]
[White "Snape, Ian L"]
[Black "Norinkeviciute, Rasa"]
[Result "1-0"]
[ECO "B86"]
[WhiteElo "2112"]
[BlackElo "2028"]
[Annotator "NA"]
[PlyCount "103"]
[EventDate "2018.12.28"]
[EventType "swiss"]
[EventCountry "ENG"]
[SourceTitle "playchess.com"]
[Source "ChessBase"]
[SourceQuality "1"]
[TimeControl "40/6000+30:3000+30"]

1. e4 {[%emt 0:00:00]} c5 {[%emt 0:00:00]} 2. Nf3 {[%emt 0:00:00]} d6 {[%emt 0:00:00]} 3. d4 {[%emt 0:00:00]} cxd4 {[%emt 0:00:00]} 4. Nxd4 {[%emt 0:00:00]} Nf6 {[%emt 0:00:00]} 5. Nc3 {[%emt 0:00:00]} a6 {[%emt 0:00:00]} 6. Bc4 {[%emt 0:00:54]} e6 {[%emt 0:00:21]} 7. Bb3 {[%emt 0:00:05]} Qc7 {[%emt 0:05:43]} 8. Be3 {[%emt 0:03:45]} b5 {[%emt 0:06:33]} 9. f3 {[%emt 0:00:32]} Nc6 {[%emt 0:03:39]} 10. Nxc6 {[%emt 0:01:15]} Qxc6 {[%emt 0:00:08]} 11. Qe2 {[%emt 0:02:41]} Be7 {[%emt 0:08:00]} 12. a4 {[%emt 0:02:35]} b4 {[%emt 0:02:53]} 13. a5 {[%emt 0:00:21]} O-O {[%emt 0:01:04]} 14. Na4 {[%emt 0:00:46]} Nd7 {[%emt 0:05:02]} 15. Nb6 {[%emt 0:06:02]} Nxb6 {[%emt 0:04:47]} 16. Bxb6 {[%emt 0:00:19]} Bf6 {[%emt 0:03:03]} 17. O-O-O {[%emt 0:08:13]} Bd8 {[%emt 0:20:27]} 18. Bxd8 {[%emt 0:17:47]} Rxd8 {[%emt 0:00:07]} 19. Rd4 {[%emt 0:04:08]} Qc5 {[%emt 0:13:28]} 20. Rhd1 {[%emt 0:01:05]} Bb7 {[%emt 0:09:21]} 21. Qd2 {[%emt 0:02:20]} Qxa5 {[%emt 0:02:59]} 22. Kb1 {[%emt 0:00:34]} d5 {[%emt 0:04:53]} 23. Qxb4 {[%emt 0:07:46]} Qc7 {[%emt 0:01:21]} 24. exd5 {[%emt 0:01:05]} Bxd5 {[%emt 0:01:44]} 25. Bxd5 {[%emt 0:01:30]} exd5 {[%emt 0:01:55]} 26. g3 {[%emt 0:04:36]} Rab8 {[%emt 0:03:15]} 27. Qd2 {[%emt 0:00:16]} Rb5 {[%emt 0:04:24]} 28. c4 {[%emt 0:00:58]} Rc5 {[%emt 0:00:07]} 29. Rxd5 {[%emt 0:01:06]} Rcxd5 {[%emt 0:01:07]} 30. cxd5 {[%emt 0:00:06]} Qd6 {[%emt 0:01:20]} 31. Qd4 {[%emt 0:10:57]} h5 {[%emt 0:01:54]} 32. Qe4 {[%emt 0:02:04]} g6 {[%emt 0:03:29]} 33. f4 {[%emt 0:00:26]} Kg7 {[%emt 0:02:15]} 34. Qe5+ {[%emt 0:00:25]} f6 {[%emt 0:00:15]} 35. Qxd6 {[%emt 0:00:36]} Rxd6 {[%emt 0:00:04]} 36. Kc2 {[%emt 0:00:09]} Kf7 {[%emt 0:00:40]} 37. b4 {[%emt 0:00:26]} Ke7 {[%emt 0:00:17]} 38. Kc3 {[%emt 0:00:08]} Rd8 {[%emt 0:01:33]} 39. Kd4 {[%emt 0:00:13]} Rc8 {[%emt 0:00:14]} 40. Re1+ {[%emt 0:00:19]} Kf7 {[%emt 0:00:58]} 41. Re2 {[%emt 0:53:38]} Rb8 {[%emt 0:01:03]} 42. Kc5 {[%emt 0:00:00]} Rb5+ {[%emt 0:00:24]} 43. Kc4 {[%emt 0:00:00]} Rb7 {[%emt 0:01:47]} 44. Re6 {[%emt 0:00:00]} Rc7+ {[%emt 0:04:51]} 45. Rc6 {[%emt 0:00:00]} Ra7 {[%emt 0:00:38]} 46. Kc5 {[%emt 0:00:00]} Re7 {[%emt 0:01:24]} 47. d6 {[%emt 0:00:00]} Re2 {[%emt 0:00:43]} 48. Rc7+ {[%emt 0:00:00]} Kf8 {[%emt 0:00:43]} 49. Ra7 {[%emt 0:00:00]} Rxh2 {[%emt 0:00:46]} 50. Ra8+ {[%emt 0:00:00]} Kf7 {[%emt 0:00:19]} 51. d7 {[%emt 0:00:00]} Rc2+ {[%emt 0:01:31]} 52. Kb6 {[%emt 0:00:00]} 1-0

[Event "94th Tradewise Hastings Congress"]
[Site "Hastings"]
[Date "2019.01.04"]
[Round "8"]
[White "White, Stuart A"]
[Black "Song, Jinwoo"]
[Result "1/2-1/2"]
[ECO "E90"]
[WhiteElo "2096"]
[BlackElo "1907"]
[Annotator "NA"]
[PlyCount "60"]
[EventDate "2018.12.28"]
[EventType "swiss"]
[EventCountry "ENG"]
[SourceTitle "playchess.com"]
[Source "ChessBase"]
[SourceQuality "1"]
[TimeControl "40/6000+30:3000+30"]

1. d4 {[%emt 0:00:00]} Nf6 {[%emt 0:00:00]} 2. c4 {[%emt 0:00:00]} g6 {[%emt 0:00:00]} 3. Nc3 {[%emt 0:00:00]} Bg7 {[%emt 0:00:00]} 4. e4 {[%emt 0:00:41]} d6 {[%emt 0:00:02]} 5. Nf3 {[%emt 0:00:27]} O-O {[%emt 0:00:19]} 6. h3 {[%emt 0:00:03]} e5 {[%emt 0:05:56]} 7. d5 {[%emt 0:00:10]} a5 {[%emt 0:00:22]} 8. Bg5 {[%emt 0:00:34]} h6 {[%emt 0:02:25]} 9. Be3 {[%emt 0:00:07]} Kh7 {[%emt 0:04:44]} 10. Be2 {[%emt 0:07:08]} b6 {[%emt 0:01:23]} 11. g4 {[%emt 0:04:24]} Na6 {[%emt 0:01:03]} 12. Nd2 {[%emt 0:17:53]} Nd7 {[%emt 0:04:39]} 13. h4 {[%emt 0:01:42]} Ndc5 {[%emt 0:01:25]} 14. g5 {[%emt 0:01:52]} h5 {[%emt 0:03:20]} 15. Nf1 {[%emt 0:05:07]} f5 {[%emt 0:05:36]} 16. Bxh5 {[%emt 0:11:00]} fxe4 {[%emt 0:08:41]} 17. Be2 {[%emt 0:04:20]} Bf5 {[%emt 0:07:31]} 18. Ng3 {[%emt 0:02:42]} Nd3+ {[%emt 0:03:10]} 19. Bxd3 {[%emt 0:01:54]} exd3 {[%emt 0:00:29]} 20. Nxf5 {[%emt 0:01:40]} Rxf5 {[%emt 0:02:28]} 21. Qxd3 {[%emt 0:03:55]} Nc5 {[%emt 0:09:11]} 22. Bxc5 {[%emt 0:01:33]} bxc5 {[%emt 0:00:12]} 23. Ne4 {[%emt 0:00:48]} Qf8 {[%emt 0:02:53]} 24. Rh3 {[%emt 0:04:55]} Rf4 {[%emt 0:04:35]} 25. h5 {[%emt 0:10:44]} Qf5 {[%emt 0:02:11]} 26. hxg6+ {[%emt 0:00:36]} Kxg6 {[%emt 0:00:28]} 27. Re3 {[%emt 0:01:39]} Rh8 {[%emt 0:03:40]} 28. O-O-O {[%emt 0:03:53]} Rhh4 {[%emt 0:00:36]} 29. Rde1 {[%emt 0:03:08]} Bf8 {[%emt 0:03:21]} 30. Qe2 {[%emt 0:08:46]} Be7 {[%emt 0:01:12]} 1/2-1/2

[Event "94th Tradewise Hastings Congress"]
[Site "Hastings"]
[Date "2019.01.04"]
[Round "8"]
[White "Willson, Ollie"]
[Black "Ruane, Brendan J"]
[Result "1-0"]
[ECO "D35"]
[WhiteElo "2081"]
[BlackElo "1870"]
[Annotator "NA"]
[PlyCount "67"]
[EventDate "2018.12.28"]
[EventType "swiss"]
[EventCountry "ENG"]
[SourceTitle "playchess.com"]
[Source "ChessBase"]
[SourceQuality "1"]
[TimeControl "40/6000+30:3000+30"]

1. d4 {[%emt 0:00:00]} d5 {[%emt 0:00:00]} 2. c4 {[%emt 0:00:00]} e6 {[%emt 0:00:07]} 3. Nf3 {[%emt 0:00:00]} a6 {[%emt 0:00:14]} 4. cxd5 {[%emt 0:00:10]} exd5 {[%emt 0:00:38]} 5. Nc3 {[%emt 0:00:16]} Nf6 {[%emt 0:01:15]} 6. Bg5 {[%emt 0:00:19]} Be6 {[%emt 0:00:31]} 7. e3 {[%emt 0:05:18]} Nbd7 {[%emt 0:02:04]} 8. Bd3 {[%emt 0:00:56]} Be7 {[%emt 0:01:04]} 9. O-O {[%emt 0:01:00]} O-O {[%emt 0:04:58]} 10. Rc1 {[%emt 0:01:45]} c5 {[%emt 0:01:25]} 11. dxc5 {[%emt 0:12:24]} Nxc5 {[%emt 0:00:05]} 12. Be2 {[%emt 0:11:10]} Rc8 {[%emt 0:03:25]} 13. Bf4 {[%emt 0:08:59]} Bg4 {[%emt 0:06:51]} 14. h3 {[%emt 0:01:03]} Bh5 {[%emt 0:05:04]} 15. g4 {[%emt 0:27:24]} Bg6 {[%emt 0:00:28]} 16. Ne5 {[%emt 0:01:34]} Nce4 {[%emt 0:08:36]} 17. Nxg6 {[%emt 0:01:27]} fxg6 {[%emt 0:00:04]} 18. Nxe4 {[%emt 0:02:14]} dxe4 {[%emt 0:00:33]} 19. Qb3+ {[%emt 0:00:56]} Kh8 {[%emt 0:00:37]} 20. Rcd1 {[%emt 0:01:38]} Qa5 {[%emt 0:06:12]} 21. Qxb7 {[%emt 0:00:48]} Ng8 {[%emt 0:02:05]} 22. Qxa6 {[%emt 0:10:57]} Qb4 {[%emt 0:01:05]} 23. Qb5 {[%emt 0:02:06]} Rc2 {[%emt 0:01:10]} 24. Be5 {[%emt 0:02:09]} Rxe2 {[%emt 0:05:06]} 25. Qxe2 {[%emt 0:00:16]} Rf3 {[%emt 0:01:32]} 26. Rd4 {[%emt 0:01:59]} Qb7 {[%emt 0:07:13]} 27. Kg2 {[%emt 0:01:13]} Bc5 {[%emt 0:03:02]} 28. Rc4 {[%emt 0:02:07]} Qd5 {[%emt 0:02:50]} 29. Bg3 {[%emt 0:01:12]} h5 {[%emt 0:00:44]} 30. Qc2 {[%emt 0:00:32]} Bxe3 {[%emt 0:03:19]} 31. fxe3 {[%emt 0:03:00]} Rxe3 {[%emt 0:00:02]} 32. Rc5 {[%emt 0:02:55]} Qa8 {[%emt 0:03:29]} 33. Rc8 {[%emt 0:01:24]} Qd5 {[%emt 0:00:19]} 34. Qc4 {[%emt 0:00:38]} 1-0

[Event "94th Tradewise Hastings Congress"]
[Site "Hastings"]
[Date "2019.01.04"]
[Round "8"]
[White "Brown, Thomas"]
[Black "Moore, Graham J"]
[Result "1/2-1/2"]
[ECO "A06"]
[WhiteElo "2068"]
[BlackElo "2235"]
[Annotator "NA"]
[PlyCount "105"]
[EventDate "2018.12.28"]
[EventType "swiss"]
[EventCountry "ENG"]
[SourceTitle "playchess.com"]
[Source "ChessBase"]
[SourceQuality "1"]
[TimeControl "40/6000+30:3000+30"]

1. Nf3 {[%emt 0:00:00]} d5 {[%emt 0:00:00]} 2. c4 {[%emt 0:00:00]} e6 {[%emt 0:00:00]} 3. b3 {[%emt 0:00:00]} Nf6 {[%emt 0:00:11]} 4. Bb2 {[%emt 0:00:05]} Be7 {[%emt 0:00:09]} 5. e3 {[%emt 0:00:13]} c5 {[%emt 0:00:25]} 6. cxd5 {[%emt 0:01:27]} exd5 {[%emt 0:02:09]} 7. Be2 {[%emt 0:00:18]} O-O {[%emt 0:00:19]} 8. O-O {[%emt 0:00:12]} Nc6 {[%emt 0:03:54]} 9. d4 {[%emt 0:01:15]} b6 {[%emt 0:02:04]} 10. Nc3 {[%emt 0:02:35]} Ne4 {[%emt 0:10:03]} 11. dxc5 {[%emt 0:07:24]} Nxc3 {[%emt 0:00:49]} 12. Bxc3 {[%emt 0:00:08]} bxc5 {[%emt 0:00:16]} 13. Qd2 {[%emt 0:06:43]} Be6 {[%emt 0:00:08]} 14. Ne5 {[%emt 0:10:58]} Nxe5 {[%emt 0:03:55]} 15. Bxe5 {[%emt 0:00:38]} Qb6 {[%emt 0:00:40]} 16. Bf3 {[%emt 0:08:34]} Rfd8 {[%emt 0:03:18]} 17. Rfd1 {[%emt 0:09:20]} Rd7 {[%emt 0:04:05]} 18. h3 {[%emt 0:03:45]} Rad8 {[%emt 0:01:28]} 19. Bc3 {[%emt 0:00:08]} Rb8 {[%emt 0:03:10]} 20. Qb2 {[%emt 0:06:01]} Bf8 {[%emt 0:03:19]} 21. Rd2 {[%emt 0:00:11]} Qd8 {[%emt 0:08:20]} 22. Rad1 {[%emt 0:06:29]} Qg5 {[%emt 0:03:32]} 23. Be5 {[%emt 0:05:39]} Rbd8 {[%emt 0:01:26]} 24. Bf4 {[%emt 0:03:25]} Qg6 {[%emt 0:00:39]} 25. h4 {[%emt 0:01:01]} f6 {[%emt 0:00:27]} 26. Qb1 {[%emt 0:06:12]} Bf5 {[%emt 0:03:45]} 27. h5 {[%emt 0:01:41]} Bxb1 {[%emt 0:01:17]} 28. hxg6 {[%emt 0:00:43]} Bxg6 {[%emt 0:00:38]} 29. Rxd5 {[%emt 0:00:33]} Rxd5 {[%emt 0:00:19]} 30. Rxd5 {[%emt 0:00:15]} Rxd5 {[%emt 0:01:30]} 31. Bxd5+ {[%emt 0:00:06]} Bf7 {[%emt 0:01:11]} 32. e4 {[%emt 0:04:25]} Bxd5 {[%emt 0:04:14]} 33. exd5 {[%emt 0:00:14]} Kf7 {[%emt 0:00:03]} 34. Kf1 {[%emt 0:00:33]} Ke8 {[%emt 0:00:04]} 35. Ke2 {[%emt 0:00:18]} Kd7 {[%emt 0:00:04]} 36. Kd3 {[%emt 0:00:38]} h5 {[%emt 0:02:42]} 37. f3 {[%emt 0:06:52]} Be7 {[%emt 0:00:51]} 38. Kc4 {[%emt 0:15:16]} g5 {[%emt 0:02:14]} 39. Be3 {[%emt 0:01:31]} f5 {[%emt 0:01:50]} 40. Bxc5 {[%emt 0:01:17]} Bxc5 {[%emt 0:00:44]} 41. Kxc5 {[%emt 0:50:08]} h4 {[%emt 0:53:00]} 42. Kd4 {[%emt 0:00:00]} Kd6 {[%emt 0:00:00]} 43. a4 {[%emt 0:00:00]} a5 {[%emt 0:00:00]} 44. b4 {[%emt 0:00:00]} g4 {[%emt 0:00:00]} 45. fxg4 {[%emt 0:00:00]} fxg4 {[%emt 0:00:00]} 46. bxa5 {[%emt 0:00:00]} h3 {[%emt 0:00:00]} 47. gxh3 {[%emt 0:00:00]} gxh3 {[%emt 0:00:00]} 48. a6 {[%emt 0:00:00]} Kc7 {[%emt 0:00:00]} 49. a7 {[%emt 0:00:00]} Kb7 {[%emt 0:00:00]} 50. d6 {[%emt 0:00:00]} h2 {[%emt 0:00:00]} 51. d7 {[%emt 0:00:00]} h1=Q {[%emt 0:00:00]} 52. a8=Q+ {[%emt 0:00:00]} Kxa8 {[%emt 0:00:00]} 53. d8=Q+ {[%emt 0:00:00]} 1/2-1/2